[Event "Titled Tuesday Blitz October 31 Early 2023"]
[White "NelsonLinda"]
[Black "Liyanage, Ranindu Dilshan"]
[BlackFideId "9915834"]
[WhiteElo "2607"]
[BlackElo "2766"]
[Result "1-0"]
[Round "6"]
[TimeControl "180+1"]
[Date "2023.10.31"]
[WhiteClock "0:00:03"]
[BlackClock "0:00:01"]
[Board "46"]

1. Nf3 {[%clk 0:03:00]}  d5 {[%clk 0:02:59]} 2. b3 {[%clk 0:03:00]}  Nf6 {[%clk 0:02:59]} 3. Bb2 {[%clk 0:03:00]}  e6 {[%clk 0:02:58]} 4. g3 {[%clk 0:02:59]}  Bd6 {[%clk 0:02:51]} 5. Bg2 {[%clk 0:03:00]}  O-O {[%clk 0:02:51]} 6. O-O {[%clk 0:03:01]}  Nc6 {[%clk 0:02:52]} 7. d3 {[%clk 0:03:01]}  e5 {[%clk 0:02:52]} 8. Nbd2 {[%clk 0:03:02]}  Re8 {[%clk 0:02:48]} 9. e4 {[%clk 0:03:00]}  dxe4 {[%clk 0:02:48]} 10. dxe4 {[%clk 0:02:42]}  Be6 {[%clk 0:02:48]} 11. Ne1 {[%clk 0:02:42]}  Bb4 {[%clk 0:02:45]} 12. Nd3 {[%clk 0:02:41]}  Bd6 {[%clk 0:02:40]} 13. Qe2 {[%clk 0:02:40]}  h6 {[%clk 0:02:39]} 14. Nf3 {[%clk 0:02:39]}  Bg4 {[%clk 0:02:32]} 15. h3 {[%clk 0:02:39]}  Bh5 {[%clk 0:02:32]} 16. Qe3 {[%clk 0:02:26]}  Bg6 {[%clk 0:02:26]} 17. Nh4 {[%clk 0:02:22]}  Bh7 {[%clk 0:02:26]} 18. Rad1 {[%clk 0:02:22]}  Qc8 {[%clk 0:02:25]} 19. a3 {[%clk 0:02:14]}  Nd4 {[%clk 0:02:24]} 20. Rd2 {[%clk 0:02:08]}  a5 {[%clk 0:02:16]} 21. Re1 {[%clk 0:02:06]}  c5 {[%clk 0:02:09]} 22. a4 {[%clk 0:01:55]}  c4 {[%clk 0:02:02]} 23. Nxe5 {[%clk 0:01:51]}  Bxe5 {[%clk 0:00:55]} 24. Bxd4 {[%clk 0:01:51]}  Qc6 {[%clk 0:00:51]} 25. f4 {[%clk 0:01:35]}  Bxd4 {[%clk 0:00:47]} 26. Rxd4 {[%clk 0:01:36]}  cxb3 {[%clk 0:00:44]} 27. cxb3 {[%clk 0:01:36]}  Qb6 {[%clk 0:00:38]} 28. e5 {[%clk 0:01:31]}  Nh5 {[%clk 0:00:30]} 29. Kh2 {[%clk 0:01:26]}  g6 {[%clk 0:00:22]} 30. Rd7 {[%clk 0:01:16]}  Qxe3 {[%clk 0:00:20]} 31. Rxe3 {[%clk 0:01:17]}  Rac8 {[%clk 0:00:20]} 32. Bd5 {[%clk 0:01:12]}  Rc2+ {[%clk 0:00:20]} 33. Ng2 {[%clk 0:01:13]}  Rf8 {[%clk 0:00:17]} 34. Rxb7 {[%clk 0:01:08]}  g5 {[%clk 0:00:15]} 35. fxg5 {[%clk 0:01:06]}  hxg5 {[%clk 0:00:16]} 36. Rf3 {[%clk 0:01:07]}  Rd8 {[%clk 0:00:13]} 37. e6 {[%clk 0:00:17]}  fxe6 {[%clk 0:00:09]} 38. Bxe6+ {[%clk 0:00:17]}  Kh8 {[%clk 0:00:09]} 39. Rxh7+ {[%clk 0:00:07]}  Kxh7 {[%clk 0:00:07]} 40. Bf5+ {[%clk 0:00:08]}  Kh6 {[%clk 0:00:08]} 41. Bxc2 {[%clk 0:00:09]}  Rd2 {[%clk 0:00:08]} 42. Bf5 {[%clk 0:00:07]}  Nf6 {[%clk 0:00:08]} 43. Rd3 {[%clk 0:00:05]}  Rf2 {[%clk 0:00:07]} 44. g4 {[%clk 0:00:05]}  Kg7 {[%clk 0:00:04]} 45. Kg3 {[%clk 0:00:05]}  Rb2 {[%clk 0:00:04]} 46. Nh4 {[%clk 0:00:05]}  gxh4+ {[%clk 0:00:04]} 47. Kxh4 {[%clk 0:00:06]}  Ne8 {[%clk 0:00:04]} 48. Kg5 {[%clk 0:00:06]}  Kf8 {[%clk 0:00:03]} 49. Bg6 {[%clk 0:00:05]}  Ng7 {[%clk 0:00:02]} 50. Kf6 {[%clk 0:00:04]}  Rf2+ {[%clk 0:00:02]} 51. Bf5 {[%clk 0:00:04]}  Ne8+ {[%clk 0:00:02]} 52. Ke6 {[%clk 0:00:03]}  Re2+ {[%clk 0:00:03]} 53. Kd7 {[%clk 0:00:03]}  Nf6+ {[%clk 0:00:03]} 54. Kc6 {[%clk 0:00:04]}  Re5 {[%clk 0:00:03]} 55. Rd8+ {[%clk 0:00:03]}  Ke7 {[%clk 0:00:04]} 56. Rd3 {[%clk 0:00:04]}  Ne8 {[%clk 0:00:03]} 57. h4 {[%clk 0:00:04]}  Nf6 {[%clk 0:00:03]} 58. h5 {[%clk 0:00:03]}  Re1 {[%clk 0:00:03]} 59. h6 {[%clk 0:00:03]}  Rh1 {[%clk 0:00:04]} 60. h7 {[%clk 0:00:04]}  Ke8 {[%clk 0:00:02]} 61. Re3+ {[%clk 0:00:03]}  Kf8 {[%clk 0:00:02]} 62. g5 {[%clk 0:00:03]}  Nxh7 {[%clk 0:00:02]} 63. Bxh7 {[%clk 0:00:03]}  Rxh7 {[%clk 0:00:03]} 64. Rg3 {[%clk 0:00:03]}  Kg7 {[%clk 0:00:02]} 65. Kb5 {[%clk 0:00:03]}  Rh3 {[%clk 0:00:01]} 66. Rxh3 {[%clk 0:00:03]} 1-0


[Site "https://www.chess.com"]

[Event "Titled Tuesday Blitz October 31 Early 2023"]
[White "NovozhilovSemen"]
[Black "StiffMaster1"]
[WhiteElo "2732"]
[BlackElo "2593"]
[Result "1-0"]
[Round "6"]
[TimeControl "180+1"]
[Date "2023.10.31"]
[WhiteClock "0:01:17"]
[BlackClock "0:00:01"]
[Board "49"]

1. d4 {[%clk 0:02:57]}  Nf6 {[%clk 0:02:59]} 2. Nf3 {[%clk 0:02:56]}  g6 {[%clk 0:02:55]} 3. Nc3 {[%clk 0:02:55]}  d5 {[%clk 0:02:54]} 4. Bf4 {[%clk 0:02:54]}  Bg7 {[%clk 0:02:54]} 5. Nb5 {[%clk 0:02:53]}  Na6 {[%clk 0:02:53]} 6. e3 {[%clk 0:02:53]}  O-O {[%clk 0:02:53]} 7. Be2 {[%clk 0:02:52]}  Bf5 {[%clk 0:02:50]} 8. Ne5 {[%clk 0:02:51]}  c5 {[%clk 0:02:47]} 9. O-O {[%clk 0:02:49]}  Nd7 {[%clk 0:02:38]} 10. c4 {[%clk 0:02:38]}  cxd4 {[%clk 0:02:33]} 11. exd4 {[%clk 0:02:38]}  Nxe5 {[%clk 0:02:32]} 12. dxe5 {[%clk 0:02:36]}  dxc4 {[%clk 0:02:27]} 13. Bxc4 {[%clk 0:02:37]}  Nc5 {[%clk 0:02:21]} 14. Be3 {[%clk 0:02:29]}  Nd3 {[%clk 0:02:10]} 15. Qb3 {[%clk 0:02:21]}  Nxe5 {[%clk 0:02:08]} 16. Bd5 {[%clk 0:02:17]}  Nc6 {[%clk 0:01:54]} 17. Rfd1 {[%clk 0:02:13]}  Qa5 {[%clk 0:01:48]} 18. Rac1 {[%clk 0:02:06]}  Rfc8 {[%clk 0:01:42]} 19. Bxf7+ {[%clk 0:02:00]}  Kh8 {[%clk 0:01:43]} 20. Bd5 {[%clk 0:02:00]}  a6 {[%clk 0:01:33]} 21. Na3 {[%clk 0:01:56]}  Rab8 {[%clk 0:01:30]} 22. Bb6 {[%clk 0:01:46]}  Qb4 {[%clk 0:01:31]} 23. Rxc6 {[%clk 0:01:43]}  bxc6 {[%clk 0:01:14]} 24. Qxb4 {[%clk 0:01:42]}  cxd5 {[%clk 0:01:14]} 25. Qa5 {[%clk 0:01:41]}  Bxb2 {[%clk 0:01:12]} 26. h3 {[%clk 0:01:38]}  Rxb6 {[%clk 0:01:06]} 27. Qxb6 {[%clk 0:01:34]}  Bxa3 {[%clk 0:01:06]} 28. Qxa6 {[%clk 0:01:34]}  Bd6 {[%clk 0:01:00]} 29. g4 {[%clk 0:01:29]}  Bd7 {[%clk 0:00:52]} 30. a4 {[%clk 0:01:28]}  Rc6 {[%clk 0:00:25]} 31. Qa8+ {[%clk 0:01:25]}  Kg7 {[%clk 0:00:24]} 32. a5 {[%clk 0:01:24]}  Rc4 {[%clk 0:00:18]} 33. Qxd5 {[%clk 0:01:21]}  Ra4 {[%clk 0:00:01]} 34. Qb7 {[%clk 0:01:17]} 1-0


[Site "https://www.chess.com"]

[Event "Titled Tuesday Blitz October 31 Early 2023"]
[White "Karthik Rajaa"]
[Black "Hoang, Thi Bao Tram"]
[WhiteFideId "25035215"]
[BlackFideId "12401102"]
[WhiteElo "2727"]
[BlackElo "2591"]
[Result "1-0"]
[Round "6"]
[TimeControl "180+1"]
[Date "2023.10.31"]
[WhiteClock "0:00:15"]
[BlackClock "0:00:10"]
[Board "50"]

1. Nf3 {[%clk 0:03:00]}  Nf6 {[%clk 0:02:59]} 2. c4 {[%clk 0:03:00]}  g6 {[%clk 0:02:56]} 3. Nc3 {[%clk 0:03:00]}  Bg7 {[%clk 0:02:57]} 4. g3 {[%clk 0:03:00]}  O-O {[%clk 0:02:55]} 5. Bg2 {[%clk 0:03:00]}  d6 {[%clk 0:02:56]} 6. d4 {[%clk 0:03:00]}  Nc6 {[%clk 0:02:54]} 7. d5 {[%clk 0:03:00]}  Na5 {[%clk 0:02:53]} 8. b3 {[%clk 0:03:01]}  c5 {[%clk 0:02:52]} 9. Bb2 {[%clk 0:03:01]}  a6 {[%clk 0:02:52]} 10. O-O {[%clk 0:03:00]}  Bd7 {[%clk 0:02:52]} 11. Nd2 {[%clk 0:02:48]}  b5 {[%clk 0:02:50]} 12. Rb1 {[%clk 0:02:48]}  Rb8 {[%clk 0:02:48]} 13. Qc2 {[%clk 0:02:48]}  b4 {[%clk 0:02:41]} 14. Nd1 {[%clk 0:02:46]}  Nb7 {[%clk 0:02:39]} 15. e4 {[%clk 0:02:45]}  Qc8 {[%clk 0:02:39]} 16. Ne3 {[%clk 0:02:42]}  a5 {[%clk 0:02:38]} 17. e5 {[%clk 0:02:36]}  Ne8 {[%clk 0:02:18]} 18. f4 {[%clk 0:02:32]}  a4 {[%clk 0:02:16]} 19. Nf3 {[%clk 0:02:21]}  Ra8 {[%clk 0:02:12]} 20. e6 {[%clk 0:02:06]}  fxe6 {[%clk 0:02:09]} 21. dxe6 {[%clk 0:02:07]}  Bxe6 {[%clk 0:02:09]} 22. Ng5 {[%clk 0:02:07]}  Bd7 {[%clk 0:01:58]} 23. Nd5 {[%clk 0:02:04]}  Qd8 {[%clk 0:01:28]} 24. Rfe1 {[%clk 0:02:03]}  e5 {[%clk 0:01:24]} 25. h4 {[%clk 0:01:47]}  Bf5 {[%clk 0:01:21]} 26. Be4 {[%clk 0:01:46]}  Bxe4 {[%clk 0:01:20]} 27. Qxe4 {[%clk 0:01:40]}  axb3 {[%clk 0:01:20]} 28. axb3 {[%clk 0:01:39]}  Qd7 {[%clk 0:01:10]} 29. fxe5 {[%clk 0:01:38]}  dxe5 {[%clk 0:01:10]} 30. Bxe5 {[%clk 0:01:38]}  Ned6 {[%clk 0:01:10]} 31. Qd3 {[%clk 0:01:10]}  Rae8 {[%clk 0:01:05]} 32. Bxg7 {[%clk 0:01:07]}  Qxg7 {[%clk 0:01:05]} 33. Ne6 {[%clk 0:01:05]}  Rxe6 {[%clk 0:00:59]} 34. Rxe6 {[%clk 0:01:06]}  Nf5 {[%clk 0:00:59]} 35. Rf1 {[%clk 0:01:01]}  Nd8 {[%clk 0:00:45]} 36. Ree1 {[%clk 0:00:55]}  Nc6 {[%clk 0:00:45]} 37. Qe4 {[%clk 0:00:45]}  Ncd4 {[%clk 0:00:22]} 38. g4 {[%clk 0:00:42]}  Nxh4 {[%clk 0:00:19]} 39. Rxf8+ {[%clk 0:00:23]}  Qxf8 {[%clk 0:00:17]} 40. Rf1 {[%clk 0:00:24]}  Nhf3+ {[%clk 0:00:14]} 41. Kg2 {[%clk 0:00:18]}  Qa8 {[%clk 0:00:10]} 42. Nf6+ {[%clk 0:00:16]}  Kg7 {[%clk 0:00:10]} 43. Qxa8 {[%clk 0:00:16]}  Kxf6 {[%clk 0:00:10]} 44. Rxf3+ {[%clk 0:00:15]} 1-0


[Site "https://www.chess.com"]

[Event "Titled Tuesday Blitz October 31 Early 2023"]
[White "Omelja, Artem"]
[Black "Kosteniuk, Alexandra"]
[WhiteFideId "14119846"]
[BlackFideId "4128125"]
[WhiteElo "2583"]
[BlackElo "2723"]
[Result "0-1"]
[Round "6"]
[TimeControl "180+1"]
[Date "2023.10.31"]
[WhiteClock "0:00:01"]
[BlackClock "0:01:00"]
[Board "51"]

1. e4 {[%clk 0:03:00]}  c6 {[%clk 0:02:59]} 2. Ne2 {[%clk 0:02:59]}  d5 {[%clk 0:03:00]} 3. e5 {[%clk 0:02:58]}  c5 {[%clk 0:02:59]} 4. d4 {[%clk 0:02:57]}  Nc6 {[%clk 0:02:58]} 5. dxc5 {[%clk 0:02:56]}  Nxe5 {[%clk 0:02:57]} 6. Nd4 {[%clk 0:02:56]}  Nf6 {[%clk 0:02:54]} 7. b4 {[%clk 0:02:52]}  g6 {[%clk 0:02:49]} 8. c3 {[%clk 0:02:50]}  Bg7 {[%clk 0:02:49]} 9. Bf4 {[%clk 0:02:46]}  Nc4 {[%clk 0:02:38]} 10. Nb5 {[%clk 0:02:02]}  O-O {[%clk 0:02:20]} 11. Bxc4 {[%clk 0:01:54]}  dxc4 {[%clk 0:02:21]} 12. Qxd8 {[%clk 0:01:54]}  Rxd8 {[%clk 0:02:22]} 13. Nc7 {[%clk 0:01:55]}  Rb8 {[%clk 0:02:22]} 14. Nb5 {[%clk 0:00:54]}  Ra8 {[%clk 0:02:22]} 15. Nc7 {[%clk 0:00:55]}  Nh5 {[%clk 0:02:22]} 16. Nxa8 {[%clk 0:00:44]}  Nxf4 {[%clk 0:02:22]} 17. Nc7 {[%clk 0:00:45]}  Nxg2+ {[%clk 0:02:19]} 18. Ke2 {[%clk 0:00:40]}  Bg4+ {[%clk 0:02:14]} 19. f3 {[%clk 0:00:36]}  Bf5 {[%clk 0:02:10]} 20. Rd1 {[%clk 0:00:24]}  Bd3+ {[%clk 0:02:07]} 21. Kf2 {[%clk 0:00:24]}  Nf4 {[%clk 0:02:08]} 22. Na3 {[%clk 0:00:22]}  Bxc3 {[%clk 0:02:05]} 23. Rac1 {[%clk 0:00:17]}  Bd4+ {[%clk 0:02:02]} 24. Ke1 {[%clk 0:00:12]}  Ng2+ {[%clk 0:01:58]} 25. Kd2 {[%clk 0:00:12]}  Bb2 {[%clk 0:01:57]} 26. Nab5 {[%clk 0:00:07]}  Bxc1+ {[%clk 0:01:43]} 27. Kxc1 {[%clk 0:00:08]}  Rd7 {[%clk 0:01:38]} 28. Na8 {[%clk 0:00:04]}  Ne3 {[%clk 0:01:31]} 29. Rd2 {[%clk 0:00:04]}  Nd5 {[%clk 0:01:30]} 30. a3 {[%clk 0:00:03]}  a6 {[%clk 0:01:29]} 31. Nd4 {[%clk 0:00:02]}  e5 {[%clk 0:01:25]} 32. Ne2 {[%clk 0:00:02]}  f5 {[%clk 0:01:20]} 33. Kb2 {[%clk 0:00:02]}  e4 {[%clk 0:01:18]} 34. fxe4 {[%clk 0:00:02]}  fxe4 {[%clk 0:01:19]} 35. Nc3 {[%clk 0:00:03]}  e3 {[%clk 0:01:14]} 36. Rg2 {[%clk 0:00:03]}  Nf4 {[%clk 0:01:12]} 37. Rg1 {[%clk 0:00:02]}  e2 {[%clk 0:01:12]} 38. Nb6 {[%clk 0:00:03]}  Re7 {[%clk 0:01:12]} 39. Nbd5 {[%clk 0:00:01]}  Nxd5 {[%clk 0:01:11]} 40. Nxd5 {[%clk 0:00:02]}  e1=Q {[%clk 0:01:10]} 41. Rxe1 {[%clk 0:00:02]}  Rxe1 {[%clk 0:01:10]} 42. Kc3 {[%clk 0:00:03]}  Kf7 {[%clk 0:01:08]} 43. a4 {[%clk 0:00:02]}  Rb1 {[%clk 0:01:05]} 44. Nc7 {[%clk 0:00:02]}  Rb3+ {[%clk 0:01:05]} 45. Kd4 {[%clk 0:00:02]}  Rxb4 {[%clk 0:01:05]} 46. a5 {[%clk 0:00:01]}  Rb2 {[%clk 0:01:03]} 47. Kc3 {[%clk 0:00:02]}  Rxh2 {[%clk 0:01:02]} 48. c6 {[%clk 0:00:02]}  bxc6 {[%clk 0:01:02]} 49. Nxa6 {[%clk 0:00:02]}  Ra2 {[%clk 0:01:02]} 50. Kb4 {[%clk 0:00:03]}  c3 {[%clk 0:01:02]} 51. Nc5 {[%clk 0:00:03]}  Bb5 {[%clk 0:01:00]} 52. Kxc3 {[%clk 0:00:01]}  Rxa5 {[%clk 0:01:00]} 0-1


[Site "https://www.chess.com"]

[Event "Titled Tuesday Blitz October 31 Early 2023"]
[White "Guliev, Logman"]
[Black "Gubajdullin, Alexei"]
[WhiteFideId "13400061"]
[BlackFideId "4141202"]
[WhiteElo "2569"]
[BlackElo "2715"]
[Result "0-1"]
[Round "6"]
[TimeControl "180+1"]
[Date "2023.10.31"]
[WhiteClock "0:00:00"]
[BlackClock "0:00:02"]
[Board "55"]

1. e4 {[%clk 0:03:00]}  g6 {[%clk 0:02:59]} 2. d4 {[%clk 0:03:00]}  Bg7 {[%clk 0:02:59]} 3. Nc3 {[%clk 0:03:00]}  d6 {[%clk 0:02:59]} 4. Nf3 {[%clk 0:02:58]}  a6 {[%clk 0:02:59]} 5. Be2 {[%clk 0:02:58]}  Nd7 {[%clk 0:02:59]} 6. a4 {[%clk 0:02:58]}  c5 {[%clk 0:02:56]} 7. O-O {[%clk 0:02:58]}  cxd4 {[%clk 0:02:55]} 8. Nxd4 {[%clk 0:02:59]}  Ngf6 {[%clk 0:02:55]} 9. Be3 {[%clk 0:02:57]}  O-O {[%clk 0:02:55]} 10. f4 {[%clk 0:02:57]}  Qc7 {[%clk 0:02:54]} 11. Bf3 {[%clk 0:02:57]}  e5 {[%clk 0:02:51]} 12. Nde2 {[%clk 0:02:55]}  b6 {[%clk 0:02:47]} 13. fxe5 {[%clk 0:02:40]}  Nxe5 {[%clk 0:02:45]} 14. Nf4 {[%clk 0:02:36]}  Nc4 {[%clk 0:02:33]} 15. Bd4 {[%clk 0:02:32]}  Bb7 {[%clk 0:02:26]} 16. Kh1 {[%clk 0:02:12]}  Nxb2 {[%clk 0:02:21]} 17. Qe2 {[%clk 0:02:02]}  Rae8 {[%clk 0:02:13]} 18. Rab1 {[%clk 0:01:47]}  d5 {[%clk 0:02:00]} 19. Bxf6 {[%clk 0:01:40]}  Bxf6 {[%clk 0:02:00]} 20. Nfxd5 {[%clk 0:01:31]}  Qd8 {[%clk 0:01:59]} 21. Nxf6+ {[%clk 0:00:56]}  Qxf6 {[%clk 0:01:58]} 22. Rxb2 {[%clk 0:00:55]}  Qxc3 {[%clk 0:01:57]} 23. Rxb6 {[%clk 0:00:56]}  Bc8 {[%clk 0:01:45]} 24. Qd3 {[%clk 0:00:54]}  Qa5 {[%clk 0:01:42]} 25. Qb3 {[%clk 0:00:46]}  Re6 {[%clk 0:01:22]} 26. Rb8 {[%clk 0:00:39]}  Qc5 {[%clk 0:01:09]} 27. Rb1 {[%clk 0:00:35]}  Ree8 {[%clk 0:01:07]} 28. c4 {[%clk 0:00:33]}  Be6 {[%clk 0:01:07]} 29. Rxe8 {[%clk 0:00:33]}  Rxe8 {[%clk 0:01:07]} 30. Rc1 {[%clk 0:00:33]}  Rc8 {[%clk 0:01:05]} 31. Qb7 {[%clk 0:00:32]}  Rc6 {[%clk 0:01:04]} 32. e5 {[%clk 0:00:31]}  Rc7 {[%clk 0:01:02]} 33. Qxa6 {[%clk 0:00:31]}  Qxe5 {[%clk 0:00:58]} 34. Qb5 {[%clk 0:00:30]}  Qe3 {[%clk 0:00:56]} 35. Qb8+ {[%clk 0:00:23]}  Kg7 {[%clk 0:00:56]} 36. Qb2+ {[%clk 0:00:21]}  f6 {[%clk 0:00:52]} 37. a5 {[%clk 0:00:20]}  Rxc4 {[%clk 0:00:50]} 38. Rf1 {[%clk 0:00:18]}  Qd4 {[%clk 0:00:47]} 39. Qxd4 {[%clk 0:00:16]}  Rxd4 {[%clk 0:00:46]} 40. Ra1 {[%clk 0:00:16]}  Bc4 {[%clk 0:00:44]} 41. a6 {[%clk 0:00:17]}  Bxa6 {[%clk 0:00:30]} 42. Rxa6 {[%clk 0:00:17]}  Rb4 {[%clk 0:00:29]} 43. Ra1 {[%clk 0:00:18]}  f5 {[%clk 0:00:29]} 44. Kg1 {[%clk 0:00:18]}  h5 {[%clk 0:00:28]} 45. Rd1 {[%clk 0:00:18]}  h4 {[%clk 0:00:28]} 46. h3 {[%clk 0:00:18]}  g5 {[%clk 0:00:26]} 47. Rd6 {[%clk 0:00:18]}  g4 {[%clk 0:00:25]} 48. hxg4 {[%clk 0:00:18]}  fxg4 {[%clk 0:00:26]} 49. Bd5 {[%clk 0:00:18]}  h3 {[%clk 0:00:24]} 50. g3 {[%clk 0:00:18]}  Rd4 {[%clk 0:00:22]} 51. Rd7+ {[%clk 0:00:17]}  Kf6 {[%clk 0:00:21]} 52. Be6 {[%clk 0:00:15]}  Rb4 {[%clk 0:00:15]} 53. Bd5 {[%clk 0:00:15]}  Rb1+ {[%clk 0:00:14]} 54. Kh2 {[%clk 0:00:14]}  Rb2+ {[%clk 0:00:14]} 55. Kg1 {[%clk 0:00:14]}  Rb1+ {[%clk 0:00:14]} 56. Kf2 {[%clk 0:00:14]}  Rb2+ {[%clk 0:00:14]} 57. Ke3 {[%clk 0:00:15]}  h2 {[%clk 0:00:07]} 58. Rh7 {[%clk 0:00:13]}  Ke5 {[%clk 0:00:06]} 59. Ba8 {[%clk 0:00:12]}  Rb3+ {[%clk 0:00:05]} 60. Kf2 {[%clk 0:00:11]}  Rb2+ {[%clk 0:00:05]} 61. Ke3 {[%clk 0:00:12]}  Rb3+ {[%clk 0:00:05]} 62. Kf2 {[%clk 0:00:12]}  Rb2+ {[%clk 0:00:06]} 63. Kf1 {[%clk 0:00:12]}  Rb3 {[%clk 0:00:03]} 64. Kg2 {[%clk 0:00:13]}  Rb2+ {[%clk 0:00:03]} 65. Kh1 {[%clk 0:00:12]}  Kd4 {[%clk 0:00:02]} 66. Rxh2 {[%clk 0:00:11]}  Rb1+ {[%clk 0:00:02]} 67. Kg2 {[%clk 0:00:11]}  Ke3 {[%clk 0:00:03]} 68. Rh5 {[%clk 0:00:10]}  Rb2+ {[%clk 0:00:03]} 69. Kg1 {[%clk 0:00:11]}  Rb1+ {[%clk 0:00:01]} 70. Kh2 {[%clk 0:00:11]}  Rb2+ {[%clk 0:00:02]} 71. Bg2 {[%clk 0:00:08]}  Ra2 {[%clk 0:00:02]} 72. Rf5 {[%clk 0:00:09]}  Ra3 {[%clk 0:00:01]} 73. Rf4 {[%clk 0:00:10]}  Ra7 {[%clk 0:00:01]} 74. Rxg4 {[%clk 0:00:00]}  Rh7+ {[%clk 0:00:02]} 0-1


[Site "https://www.chess.com"]

[Event "Titled Tuesday Blitz October 31 Early 2023"]
[White "BardArtem"]
[Black "borocotoajua"]
[WhiteElo "2704"]
[BlackElo "2568"]
[Result "1/2-1/2"]
[Round "6"]
[TimeControl "180+1"]
[Date "2023.10.31"]
[WhiteClock "0:00:14"]
[BlackClock "0:00:25"]
[Board "56"]

1. e4 {[%clk 0:03:00]}  c6 {[%clk 0:02:50]} 2. d4 {[%clk 0:03:00]}  d5 {[%clk 0:02:51]} 3. exd5 {[%clk 0:03:01]}  cxd5 {[%clk 0:02:51]} 4. Bd3 {[%clk 0:03:01]}  Nc6 {[%clk 0:02:51]} 5. c3 {[%clk 0:03:01]}  Nf6 {[%clk 0:02:51]} 6. h3 {[%clk 0:03:01]}  e5 {[%clk 0:02:49]} 7. dxe5 {[%clk 0:03:01]}  Nxe5 {[%clk 0:02:50]} 8. Nf3 {[%clk 0:03:02]}  Nxd3+ {[%clk 0:02:49]} 9. Qxd3 {[%clk 0:03:03]}  Bd6 {[%clk 0:02:49]} 10. O-O {[%clk 0:03:03]}  O-O {[%clk 0:02:49]} 11. Bg5 {[%clk 0:03:03]}  h6 {[%clk 0:02:49]} 12. Bh4 {[%clk 0:03:03]}  Re8 {[%clk 0:02:47]} 13. Nbd2 {[%clk 0:03:02]}  g5 {[%clk 0:02:11]} 14. Bg3 {[%clk 0:03:02]}  Ne4 {[%clk 0:01:59]} 15. Nxe4 {[%clk 0:02:57]}  dxe4 {[%clk 0:01:58]} 16. Qxd6 {[%clk 0:02:54]}  Qxd6 {[%clk 0:01:58]} 17. Bxd6 {[%clk 0:02:55]}  exf3 {[%clk 0:01:59]} 18. Rfe1 {[%clk 0:02:44]}  Be6 {[%clk 0:01:53]} 19. g4 {[%clk 0:02:38]}  Rad8 {[%clk 0:01:44]} 20. Bc5 {[%clk 0:02:17]}  Rd2 {[%clk 0:01:24]} 21. b3 {[%clk 0:02:13]}  b6 {[%clk 0:01:14]} 22. Be3 {[%clk 0:02:07]}  Rc2 {[%clk 0:01:14]} 23. Rec1 {[%clk 0:01:56]}  Re2 {[%clk 0:01:11]} 24. Rd1 {[%clk 0:01:56]}  f5 {[%clk 0:01:07]} 25. gxf5 {[%clk 0:01:52]}  Bxf5 {[%clk 0:01:08]} 26. Rd6 {[%clk 0:01:27]}  R8xe3 {[%clk 0:00:54]} 27. fxe3 {[%clk 0:01:25]}  Bxh3 {[%clk 0:00:53]} 28. Rf6 {[%clk 0:01:07]}  g4 {[%clk 0:00:44]} 29. Rd1 {[%clk 0:00:53]}  g3 {[%clk 0:00:25]} 30. Rxf3 {[%clk 0:00:16]}  Rg2+ {[%clk 0:00:24]} 31. Kh1 {[%clk 0:00:15]}  Rh2+ {[%clk 0:00:25]} 32. Kg1 {[%clk 0:00:16]}  Rg2+ {[%clk 0:00:24]} 33. Kh1 {[%clk 0:00:14]}  Rh2+ {[%clk 0:00:24]} 34. Kg1 {[%clk 0:00:14]}  Rg2+ {[%clk 0:00:25]} 1/2-1/2


[Site "https://www.chess.com"]